Workbook

Sheet Задания
A3: 1 | B3: В таблицу 1 проставьте названия городов из таблицы 2 в соответствии с кодами городов, а также стоимость по каждой строке.
A4: 2 | B4: В таблице 2 посчитайте суммы по каждому городу из таблицы 1.
A5: 3 | B5: Проставьте в таблице 1 статус каждой строки из таблицы 3 в зависимости от стоимости.
A6: 4 | B6: В первом столбце таблицы 4 есть набор данных, во втором столбце такой же набор данных за исключением 10 значений. Найдите значения в первом столбце, которых нет во втором.
A7: 5 | B7: На листе "Сводная" создайте сводную таблицу из таблицы 1, отражающую суммы по каждому городу и статусу.
A8: 6 | B8: Создайте макрос, который в ячейку D10 поместит из таблицы 1 общую стоимость по позициям, по которым количество больше 50.
B10: Время выполнения всех заданий - 30 минут максимум (в идеале 5-10 мин).

Sheet Условия
J1: Таблица 2 | N1: Таблица 3
J2: Код города | K2: Название города | L2: Сумма | N2: Условие | O2: Статус
J3: 1 | K3: Москва | L3: =SUMIF($C$18:$F$1017,K3,$F$18:$F$1017) -> 238495651 | N3: больше 5 млн | O3: А
J4: 2 | K4: Санкт-Петербург | L4: =SUMIF($C$18:$F$1017,K4,$F$18:$F$1017) -> 216862066 | N4: от 1 до 5 млн | O4: Б
J5: 3 | K5: Челябинск | L5: 280549198 | N5: меньше 1 млн | O5: В
J6: 4 | K6: Архангельск | L6: 279796944
J7: 5 | K7: Краснодар | L7: 244148856
J8: 6 | K8: Владивосток | L8: 253105795
J9: 7 | K9: Мурманск | L9: 219392326
A10: Результирующая ячейка для макроса | J10: 8 | K10: Новосибирск | L10: 259970564
J11: 9 | K11: Тюмень | L11: 219317957
J12: 10 | K12: Сочи | L12: 189443740
J13: =SUMIF(J21:J1020,">50",L21:L1020) -> 0 | K13: Итого: | L13: =SUM(L3:L12) -> 2401083097
A16: Таблица 1 | J16: Таблица 4
A17: № | B17: Код города | C17: Название города | D17: Кол-во | E17: Цена | F17: Стоимость | G17: Статус | J17: Исходные данные | K17: Конечные данные
A18: 1 | B18: 1 | C18: =VLOOKUP(B18,$J$2:$L$12,2,0) -> Москва | D18: 56 | E18: 93470 | F18: =D18*E18 -> 5234320 | G18: =IF(F18>5000000,"А",IF(F18<999999,"В",IF(AND(F18>999999,F18<5000000),"Б"))) -> А | J18: 93470 | K18: 16744 | L18: =IF(COUNTIF($K$18:$K$1017,J18)>0,"Есть","Нет") -> Есть
A19: 2 | B19: 4 | C19: Архангельск | D19: 29 | E19: 15436 | F19: =D19*E19 -> 447644 | G19: В | J19: 15436 | K19: 98543 | L19: =IF(COUNTIF($K$18:$K$1017,J19)>0,"Есть","Нет") -> Есть
A20: 3 | B20: 4 | C20: Архангельск | D20: 91 | E20: 85030 | F20: 7737730 | G20: А | J20: 85030 | K20: 19420 | L20: Есть
A21: 4 | B21: 1 | C21: Москва | D21: 6 | E21: 17080 | F21: 102480 | G21: В | J21: 17080 | K21: 18638 | L21: Есть
A22: 5 | B22: 5 | C22: Краснодар | D22: 26 | E22: 64494 | F22: 1676844 | G22: Б | J22: 64494 | K22: 57536 | L22: Есть
A23: 6 | B23: 9 | C23: Тюмень | D23: 65 | E23: 88369 | F23: 5743985 | G23: А | J23: 88369 | K23: 5799 | L23: Нет
A24: 7 | B24: 6 | C24: Владивосток | D24: 75 | E24: 31965 | F24: 2397375 | G24: Б | J24: 31965 | K24: 37998 | L24: Есть
A25: 8 | B25: 9 | C25: Тюмень | D25: 4 | E25: 99825 | F25: 399300 | G25: В | J25: 99825 | K25: 54695 | L25: Есть
A26: 9 | B26: 8 | C26: Новосибирск | D26: 6 | E26: 70360 | F26: 422160 | G26: В | J26: 70360 | K26: 63912 | L26: Есть
A27: 10 | B27: 10 | C27: Сочи | D27: 24 | E27: 26226 | F27: 629424 | G27: В | J27: 26226 | K27: 37905 | L27: Есть
A28: 11 | B28: 7 | C28: Мурманск | D28: 19 | E28: 79777 | F28: 1515763 | G28: Б | J28: 79777 | K28: 42872 | L28: Есть
A29: 12 | B29: 7 | C29: Мурманск | D29: 33 | E29: 99983 | F29: 3299439 | G29: Б | J29: 99983 | K29: 2396 | L29: Есть
A30: 13 | B30: 8 | C30: Новосибирск | D30: 66 | E30: 59856 | F30: 3950496 | G30: Б | J30: 59856 | K30: 61431 | L30: Есть
A31: 14 | B31: 7 | C31: Мурманск | D31: 36 | E31: 13577 | F31: 488772 | G31: В | J31: 13577 | K31: 25566 | L31: Есть
A32: 15 | B32: 6 | C32: Владивосток | D32: 43 | E32: 76951 | F32: 3308893 | G32: Б | J32: 76951 | K32: 96134 | L32: Есть
A33: 16 | B33: 10 | C33: Сочи | D33: 11 | E33: 57536 | F33: 632896 | G33: В | J33: 57536 | K33: 48370 | L33: Есть
A34: 17 | B34: 10 | C34: Сочи | D34: 5 | E34: 67723 | F34: 338615 | G34: В | J34: 67723 | K34: 67066 | L34: Есть
A35: 18 | B35: 7 | C35: Мурманск | D35: 26 | E35: 76144 | F35: 1979744 | G35: Б | J35: 76144 | K35: 43253 | L35: Есть
A36: 19 | B36: 4 | C36: Архангельск | D36: 72 | E36: 51504 | F36: 3708288 | G36: Б | J36: 51504 | K36: 63079 | L36: Есть
A37: 20 | B37: 3 | C37: Челябинск | D37: 46 | E37: 67867 | F37: 3121882 | G37: Б | J37: 67867 | K37: 36464 | L37: Есть
A38: 21 | B38: 3 | C38: Челябинск | D38: 54 | E38: 61505 | F38: 3321270 | G38: Б | J38: 61505 | K38: 22068 | L38: Есть
A39: 22 | B39: 10 | C39: Сочи | D39: 36 | E39: 45225 | F39: 1628100 | G39: Б | J39: 45225 | K39: 12696 | L39: Есть
A40: 23 | B40: 4 | C40: Архангельск | D40: 92 | E40: 20725 | F40: 1906700 | G40: Б | J40: 20725 | K40: 45475 | L40: Есть
A41: 24 | B41: 3 | C41: Челябинск | D41: 65 | E41: 60550 | F41: 3935750 | G41: Б | J41: 60550 | K41: 35148 | L41: Есть
A42: 25 | B42: 5 | C42: Краснодар | D42: 94 | E42: 11164 | F42: 1049416 | G42: Б | J42: 11164 | K42: 11141 | L42: Есть
A43: 26 | B43: 4 | C43: Архангельск | D43: 58 | E43: 41872 | F43: 2428576 | G43: Б | J43: 41872 | K43: 83318 | L43: Есть
A44: 27 | B44: 8 | C44: Новосибирск | D44: 30 | E44: 23655 | F44: 709650 | G44: В | J44: 23655 | K44: 99764 | L44: Есть
A45: 28 | B45: 6 | C45: Владивосток | D45: 60 | E45: 97901 | F45: 5874060 | G45: А | J45: 97901 | K45: 51527 | L45: Есть
A46: 29 | B46: 1 | C46: Москва | D46: 97 | E46: 82442 | F46: 7996874 | G46: А | J46: 82442 | K46: 97003 | L46: Есть
A47: 30 | B47: 3 | C47: Челябинск | D47: 100 | E47: 94804 | F47: 9480400 | G47: А | J47: 94804 | K47: 91631 | L47: Есть
A48: 31 | B48: 7 | C48: Мурманск | D48: 69 | E48: 79322 | F48: 5473218 | G48: А | J48: 79322 | K48: 12474 | L48: Есть
A49: 32 | B49: 1 | C49: Москва | D49: 72 | E49: 5272 | F49: 379584 | G49: В | J49: 5272 | K49: 81672 | L49: Есть
A50: 33 | B50: 1 | C50: Москва | D50: 4 | E50: 62962 | F50: 251848 | G50: В | J50: 62962 | K50: 63412 | L50: Есть
A51: 34 | B51: 6 | C51: Владивосток | D51: 77 | E51: 80082 | F51: 6166314 | G51: А | J51: 80082 | K51: 24302 | L51: Есть
A52: 35 | B52: 6 | C52: Владивосток | D52: 73 | E52: 70724 | F52: 5162852 | G52: А | J52: 70724 | K52: 62422 | L52: Есть
A53: 36 | B53: 4 | C53: Архангельск | D53: 86 | E53: 16106 | F53: 1385116 | G53: Б | J53: 16106 | K53: 68301 | L53: Есть
A54: 37 | B54: 8 | C54: Новосибирск | D54: 14 | E54: 1093 | F54: 15302 | G54: В | J54: 1093 | K54: 70601 | L54: Есть
A55: 38 | B55: 4 | C55: Архангельск | D55: 21 | E55: 81535 | F55: 1712235 | G55: Б | J55: 81535 | K55: 54781 | L55: Есть
A56: 39 | B56: 10 | C56: Сочи | D56: 49 | E56: 49566 | F56: 2428734 | G56: Б | J56: 49566 | K56: 54660 | L56: Есть
A57: 40 | B57: 1 | C57: Москва | D57: 60 | E57: 55723 | F57: 3343380 | G57: Б | J57: 55723 | K57: 7128 | L57: Есть
A58: 41 | B58: 8 | C58: Новосибирск | D58: 6 | E58: 77563 | F58: 465378 | G58: В | J58: 77563 | K58: 21593 | L58: Есть
A59: 42 | B59: 1 | C59: Москва | D59: 23 | E59: 82926 | F59: 1907298 | G59: Б | J59: 82926 | K59: 7039 | L59: Есть
A60: 43 | B60: 9 | C60: Тюмень | D60: 31 | E60: 70746 | F60: 2193126 | G60: Б | J60: 70746 | K60: 39542 | L60: Есть
A61: 44 | B61: 8 | C61: Новосибирск | D61: 79 | E61: 39870 | F61: 3149730 | G61: Б | J61: 39870 | K61: 23395 | L61: Есть
A62: 45 | B62: 10 | C62: Сочи | D62: 87 | E62: 6807 | F62: 592209 | G62: В | J62: 6807 | K62: 52042 | L62: Есть
A63: 46 | B63: 4 | C63: Архангельск | D63: 96 | E63: 80879 | F63: 7764384 | G63: А | J63: 80879 | K63: 46058 | L63: Есть
A64: 47 | B64: 2 | C64: Санкт-Петербург | D64: 83 | E64: 51584 | F64: 4281472 | G64: Б | J64: 51584 | K64: 25116 | L64: Есть
A65: 48 | B65: 4 | C65: Архангельск | D65: 26 | E65: 99026 | F65: 2574676 | G65: Б | J65: 99026 | K65: 37661 | L65: Есть
A66: 49 | B66: 8 | C66: Новосибирск | D66: 59 | E66: 47089 | F66: 2778251 | G66: Б | J66: 47089 | K66: 22509 | L66: Есть
A67: 50 | B67: 7 | C67: Мурманск | D67: 67 | E67: 24543 | F67: 1644381 | G67: Б | J67: 24543 | K67: 91372 | L67: Есть
A68: 51 | B68: 9 | C68: Тюмень | D68: 37 | E68: 51809 | F68: 1916933 | G68: Б | J68: 51809 | K68: 45443 | L68: Есть
A69: 52 | B69: 10 | C69: Сочи | D69: 89 | E69: 35436 | F69: 3153804 | G69: Б | J69: 35436 | K69: 38947 | L69: Есть
A70: 53 | B70: 3 | C70: Челябинск | D70: 15 | E70: 55351 | F70: 830265 | G70: В | J70: 55351 | K70: 32564 | L70: Есть
A71: 54 | B71: 7 | C71: Мурманск | D71: 85 | E71: 77027 | F71: 6547295 | G71: А | J71: 77027 | K71: 23802 | L71: Есть
A72: 55 | B72: 8 | C72: Новосибирск | D72: 48 | E72: 83295 | F72: 3998160 | G72: Б | J72: 83295 | K72: 77187 | L72: Есть
A73: 56 | B73: 8 | C73: Новосибирск | D73: 85 | E73: 91918 | F73: 7813030 | G73: А | J73: 91918 | K73: 71569 | L73: Есть
A74: 57 | B74: 2 | C74: Санкт-Петербург | D74: 61 | E74: 51832 | F74: 3161752 | G74: Б | J74: 51832 | K74: 25121 | L74: Есть
A75: 58 | B75: 4 | C75: Архангельск | D75: 65 | E75: 10557 | F75: 686205 | G75: В | J75: 10557 | K75: 47020 | L75: Есть
A76: 59 | B76: 10 | C76: Сочи | D76: 77 | E76: 43544 | F76: 3352888 | G76: Б | J76: 43544 | K76: 88597 | L76: Есть
A77: 60 | B77: 3 | C77: Челябинск | D77: 13 | E77: 62405 | F77: 811265 | G77: В | J77: 62405 | K77: 25559 | L77: Есть
A78: 61 | B78: 1 | C78: Москва | D78: 60 | E78: 17417 | F78: 1045020 | G78: Б | J78: 17417 | K78: 76028 | L78: Есть
A79: 62 | B79: 1 | C79: Москва | D79: 52 | E79: 12408 | F79: 645216 | G79: В | J79: 12408 | K79: 77797 | L79: Есть
A80: 63 | B80: 7 | C80: Мурманск | D80: 99 | E80: 69919 | F80: 6921981 | G80: А | J80: 69919 | K80: 5344 | L80: Есть
A81: 64 | B81: 4 | C81: Архангельск | D81: 27 | E81: 11244 | F81: 303588 | G81: В | J81: 11244 | K81: 96467 | L81: Есть
A82: 65 | B82: 7 | C82: =VLOOKUP(B82,$J$2:$L$12,2,0) -> Мурманск | D82: 100 | E82: 12755 | F82: 1275500 | G82: =IF(F82>5000000,"А",IF(F82<999999,"В",IF(AND(F82>999999,F82<5000000),"Б"))) -> Б | J82: 12755 | K82: 48584 | L82: Есть
A83: 66 | B83: 10 | C83: Сочи | D83: 6 | E83: 30573 | F83: =D83*E83 -> 183438 | G83: В | J83: 30573 | K83: 82466 | L83: =IF(COUNTIF($K$18:$K$1017,J83)>0,"Есть","Нет") -> Есть
A84: 67 | B84: 3 | C84: Челябинск | D84: 37 | E84: 27631 | F84: 1022347 | G84: Б | J84: 27631 | K84: 92497 | L84: Есть
A85: 68 | B85: 7 | C85: Мурманск | D85: 43 | E85: 27241 | F85: 1171363 | G85: Б | J85: 27241 | K85: 41371 | L85: Есть
A86: 69 | B86: 6 | C86: Владивосток | D86: 95 | E86: 25116 | F86: 2386020 | G86: Б | J86: 25116 | K86: 18076 | L86: Есть
A87: 70 | B87: 6 | C87: Владивосток | D87: 20 | E87: 35183 | F87: 703660 | G87: В | J87: 35183 | K87: 74104 | L87: Есть
A88: 71 | B88: 4 | C88: Архангельск | D88: 17 | E88: 12470 | F88: 211990 | G88: В | J88: 12470 | K88: 86816 | L88: Есть
A89: 72 | B89: 7 | C89: Мурманск | D89: 59 | E89: 2459 | F89: 145081 | G89: В | J89: 2459 | K89: 25288 | L89: Есть
A90: 73 | B90: 7 | C90: Мурманск | D90: 2 | E90: 37998 | F90: 75996 | G90: В | J90: 37998 | K90: 57917 | L90: Есть
A91: 74 | B91: 8 | C91: Новосибирск | D91: 59 | E91: 7682 | F91: 453238 | G91: В | J91: 7682 | K91: 78714 | L91: Есть
A92: 75 | B92: 5 | C92: Краснодар | D92: 54 | E92: 86296 | F92: 4659984 | G92: Б | J92: 86296 | K92: 70998 | L92: Есть
A93: 76 | B93: 7 | C93: Мурманск | D93: 14 | E93: 29766 | F93: 416724 | G93: В | J93: 29766 | K93: 4220 | L93: Есть
A94: 77 | B94: 1 | C94: Москва | D94: 63 | E94: 26485 | F94: 1668555 | G94: Б | J94: 26485 | K94: 1394 | L94: Есть
A95: 78 | B95: 8 | C95: Новосибирск | D95: 20 | E95: 53748 | F95: 1074960 | G95: Б | J95: 53748 | K95: 79322 | L95: Есть
A96: 79 | B96: 8 | C96: Новосибирск | D96: 58 | E96: 37262 | F96: 2161196 | G96: Б | J96: 37262 | K96: 97914 | L96: Есть
A97: 80 | B97: 7 | C97: Мурманск | D97: 59 | E97: 33128 | F97: 1954552 | G97: Б | J97: 33128 | K97: 6440 | L97: Есть
A98: 81 | B98: 9 | C98: Тюмень | D98: 82 | E98: 76366 | F98: 6262012 | G98: А | J98: 76366 | K98: 25500 | L98: Есть
A99: 82 | B99: 8 | C99: Новосибирск | D99: 28 | E99: 45961 | F99: 1286908 | G99: Б | J99: 45961 | K99: 37262 | L99: Есть
A100: 83 | B100: 1 | C100: Москва | D100: 67 | E100: 55811 | F100: 3739337 | G100: Б | J100: 55811 | K100: 10419 | L100: Есть
A101: 84 | B101: 5 | C101: Краснодар | D101: 60 | E101: 16660 | F101: 999600 | G101: В | J101: 16660 | K101: 44543 | L101: Есть
A102: 85 | B102: 6 | C102: Владивосток | D102: 16 | E102: 32980 | F102: 527680 | G102: В | J102: 32980 | K102: 70279 | L102: Есть
A103: 86 | B103: 3 | C103: Челябинск | D103: 42 | E103: 83233 | F103: 3495786 | G103: Б | J103: 83233 | K103: 39867 | L103: Есть
A104: 87 | B104: 7 | C104: Мурманск | D104: 6 | E104: 49402 | F104: 296412 | G104: В | J104: 49402 | K104: 11117 | L104: Есть
A105: 88 | B105: 10 | C105: Сочи | D105: 26 | E105: 41422 | F105: 1076972 | G105: Б | J105: 41422 | K105: 15970 | L105: Есть
A106: 89 | B106: 1 | C106: Москва | D106: 95 | E106: 65839 | F106: 6254705 | G106: А | J106: 65839 | K106: 91360 | L106: Есть
A107: 90 | B107: 3 | C107: Челябинск | D107: 100 | E107: 83971 | F107: 8397100 | G107: А | J107: 83971 | K107: 26745 | L107: Есть
A108: 91 | B108: 7 | C108: Мурманск | D108: 68 | E108: 70998 | F108: 4827864 | G108: Б | J108: 70998 | K108: 41173 | L108: Есть
A109: 92 | B109: 4 | C109: Архангельск | D109: 58 | E109: 28965 | F109: 1679970 | G109: Б | J109: 28965 | K109: 80853 | L109: Есть
A110: 93 | B110: 3 | C110: Челябинск | D110: 71 | E110: 69979 | F110: 4968509 | G110: Б | J110: 69979 | K110: 72722 | L110: Есть
A111: 94 | B111: 2 | C111: Санкт-Петербург | D111: 80 | E111: 97003 | F111: 7760240 | G111: А | J111: 97003 | K111: 59101 | L111: Есть
A112: 95 | B112: 8 | C112: Новосибирск | D112: 23 | E112: 79297 | F112: 1823831 | G112: Б | J112: 79297 | K112: 70726 | L112: Есть
A113: 96 | B113: 4 | C113: Архангельск | D113: 28 | E113: 84626 | F113: 2369528 | G113: Б | J113: 84626 | K113: 22513 | L113: Есть
A114: 97 | B114: 4 | C114: Архангельск | D114: 85 | E114: 82070 | F114: 6975950 | G114: А | J114: 82070 | K114: 11473 | L114: Есть
A115: 98 | B115: 5 | C115: Краснодар | D115: 93 | E115: 43253 | F115: 4022529 | G115: Б | J115: 43253 | K115: 51015 | L115: Есть
A116: 99 | B116: 10 | C116: Сочи | D116: 49 | E116: 20720 | F116: 1015280 | G116: Б | J116: 20720 | K116: 49627 | L116: Есть
A117: 100 | B117: 8 | C117: Новосибирск | D117: 80 | E117: 53579 | F117: 4286320 | G117: Б | J117: 53579 | K117: 86980 | L117: Есть
A118: 101 | B118: 8 | C118: Новосибирск | D118: 62 | E118: 28281 | F118: 1753422 | G118: Б | J118: 28281 | K118: 70148 | L118: Есть
A119: 102 | B119: 9 | C119: Тюмень | D119: 91 | E119: 76157 | F119: 6930287 | G119: А | J119: 76157 | K119: 37281 | L119: Есть
A120: 103 | B120: 8 | C120: Новосибирск | D120: 94 | E120: 35148 | F120: 3303912 | G120: Б | J120: 35148 | K120: 48404 | L120: Есть
A121: 104 | B121: 3 | C121: Челябинск | D121: 54 | E121: 91631 | F121: 4948074 | G121: Б | J121: 91631 | K121: 69979 | L121: Есть
A122: 105 | B122: 9 | C122: Тюмень | D122: 34 | E122: 90883 | F122: 3090022 | G122: Б | J122: 90883 | K122: 93470 | L122: Есть
A123: 106 | B123: 9 | C123: Тюмень | D123: 11 | E123: 75839 | F123: 834229 | G123: В | J123: 75839 | K123: 12420 | L123: Есть
A124: 107 | B124: 2 | C124: Санкт-Петербург | D124: 54 | E124: 92395 | F124: 4989330 | G124: Б | J124: 92395 | K124: 97901 | L124: Есть
A125: 108 | B125: 4 | C125: Архангельск | D125: 44 | E125: 72763 | F125: 3201572 | G125: Б | J125: 72763 | K125: 35122 | L125: Есть
A126: 109 | B126: 9 | C126: Тюмень | D126: 83 | E126: 10609 | F126: 880547 | G126: В | J126: 10609 | K126: 41337 | L126: Есть
A127: 110 | B127: 2 | C127: Санкт-Петербург | D127: 36 | E127: 59029 | F127: 2125044 | G127: Б | J127: 59029 | K127: 63770 | L127: Нет
A128: 111 | B128: 7 | C128: Мурманск | D128: 84 | E128: 49455 | F128: 4154220 | G128: Б | J128: 49455 | K128: 15961 | L128: Есть
A129: 112 | B129: 6 | C129: Владивосток | D129: 65 | E129: 11437 | F129: 743405 | G129: В | J129: 11437 | K129: 83756 | L129: Есть
A130: 113 | B130: 8 | C130: Новосибирск | D130: 14 | E130: 96772 | F130: 1354808 | G130: Б | J130: 96772 | K130: 87413 | L130: Есть
A131: 114 | B131: 8 | C131: Новосибирск | D131: 87 | E131: 19740 | F131: 1717380 | G131: Б | J131: 19740 | K131: 17486 | L131: Есть
A132: 115 | B132: 8 | C132: Новосибирск | D132: 29 | E132: 29480 | F132: 854920 | G132: В | J132: 29480 | K132: 65640 | L132: Есть
A133: 116 | B133: 1 | C133: Москва | D133: 63 | E133: 14635 | F133: 922005 | G133: В | J133: 14635 | K133: 72837 | L133: Есть
A134: 117 | B134: 4 | C134: Архангельск | D134: 45 | E134: 84110 | F134: 3784950 | G134: Б | J134: 84110 | K134: 1612 | L134: Есть
A135: 118 | B135: 1 | C135: Москва | D135: 34 | E135: 91687 | F135: 3117358 | G135: Б | J135: 91687 | K135: 77679 | L135: Есть
A136: 119 | B136: 2 | C136: Санкт-Петербург | D136: 82 | E136: 33516 | F136: 2748312 | G136: Б | J136: 33516 | K136: 12510 | L136: Есть
A137: 120 | B137: 5 | C137: Краснодар | D137: 39 | E137: 60658 | F137: 2365662 | G137: Б | J137: 60658 | K137: 31836 | L137: Есть
A138: 121 | B138: 5 | C138: Краснодар | D138: 35 | E138: 93406 | F138: 3269210 | G138: Б | J138: 93406 | K138: 5736 | L138: Есть
A139: 122 | B139: 10 | C139: Сочи | D139: 39 | E139: 42456 | F139: 1655784 | G139: Б | J139: 42456 | K139: 10922 | L139: Есть
A140: 123 | B140: 2 | C140: Санкт-Петербург | D140: 70 | E140: 71985 | F140: 5038950 | G140: А | J140: 71985 | K140: 28316 | L140: Есть
A141: 124 | B141: 8 | C141: Новосибирск | D141: 97 | E141: 99673 | F141: 9668281 | G141: А | J141: 99673 | K141: 46389 | L141: Есть
A142: 125 | B142: 7 | C142: Мурманск | D142: 23 | E142: 32845 | F142: 755435 | G142: В | J142: 32845 | K142: 83533 | L142: Есть
A143: 126 | B143: 10 | C143: Сочи | D143: 15 | E143: 79432 | F143: 1191480 | G143: Б | J143: 79432 | K143: 10628 | L143: Есть
A144: 127 | B144: 2 | C144: Санкт-Петербург | D144: 55 | E144: 23922 | F144: 1315710 | G144: Б | J144: 23922 | K144: 77729 | L144: Есть
A145: 128 | B145: 7 | C145: Мурманск | D145: 27 | E145: 80011 | F145: 2160297 | G145: Б | J145: 80011 | K145: 95757 | L145: Есть
A146: 129 | B146: 6 | C146: =VLOOKUP(B146,$J$2:$L$12,2,0) -> Владивосток | D146: 99 | E146: 14123 | F146: 1398177 | G146: =IF(F146>5000000,"А",IF(F146<999999,"В",IF(AND(F146>999999,F146<5000000),"Б"))) -> Б | J146: 14123 | K146: 98214 | L146: Есть
A147: 130 | B147: 8 | C147: Новосибирск | D147: 18 | E147: 96467 | F147: =D147*E147 -> 1736406 | G147: Б | J147: 96467 | K147: 43130 | L147: =IF(COUNTIF($K$18:$K$1017,J147)>0,"Есть","Нет") -> Есть
A148: 131 | B148: 5 | C148: Краснодар | D148: 76 | E148: 15961 | F148: 1213036 | G148: Б | J148: 15961 | K148: 75835 | L148: Есть
A149: 132 | B149: 10 | C149: Сочи | D149: 100 | E149: 98214 | F149: 9821400 | G149: А | J149: 98214 | K149: 45421 | L149: Есть
A150: 133 | B150: 3 | C150: Челябинск | D150: 3 | E150: 1305 | F150: 3915 | G150: В | J150: 1305 | K150: 31807 | L150: Есть
A151: 134 | B151: 6 | C151: Владивосток | D151: 62 | E151: 34301 | F151: 2126662 | G151: Б | J151: 34301 | K151: 42484 | L151: Есть
A152: 135 | B152: 5 | C152: Краснодар | D152: 97 | E152: 34065 | F152: 3304305 | G152: Б | J152: 34065 | K152: 45961 | L152: Есть
A153: 136 | B153: 5 | C153: Краснодар | D153: 99 | E153: 78828 | F153: 7803972 | G153: А | J153: 78828 | K153: 38588 | L153: Есть
A154: 137 | B154: 8 | C154: Новосибирск | D154: 43 | E154: 78436 | F154: 3372748 | G154: Б | J154: 78436 | K154: 76380 | L154: Есть
A155: 138 | B155: 1 | C155: Москва | D155: 57 | E155: 67739 | F155: 3861123 | G155: Б | J155: 67739 | K155: 26703 | L155: Есть
A156: 139 | B156: 8 | C156: Новосибирск | D156: 98 | E156: 55013 | F156: 5391274 | G156: А | J156: 55013 | K156: 57068 | L156: Есть
A157: 140 | B157: 10 | C157: Сочи | D157: 70 | E157: 72955 | F157: 5106850 | G157: А | J157: 72955 | K157: 3022 | L157: Есть
A158: 141 | B158: 4 | C158: Архангельск | D158: 38 | E158: 48899 | F158: 1858162 | G158: Б | J158: 48899 | K158: 90970 | L158: Есть
A159: 142 | B159: 9 | C159: Тюмень | D159: 70 | E159: 25566 | F159: 1789620 | G159: Б | J159: 25566 | K159: 64685 | L159: Есть
A160: 143 | B160: 10 | C160: Сочи | D160: 77 | E160: 4631 | F160: 356587 | G160: В | J160: 4631 | K160: 16938 | L160: Есть
A161: 144 | B161: 4 | C161: Архангельск | D161: 96 | E161: 86547 | F161: 8308512 | G161: А | J161: 86547 | K161: 55811 | L161: Есть
A162: 145 | B162: 9 | C162: Тюмень | D162: 95 | E162: 49527 | F162: 4705065 | G162: Б | J162: 49527 | K162: 28781 | L162: Есть
A163: 146 | B163: 6 | C163: Владивосток | D163: 22 | E163: 23224 | F163: 510928 | G163: В | J163: 23224 | K163: 43359 | L163: Есть
A164: 147 | B164: 6 | C164: Владивосток | D164: 87 | E164: 37785 | F164: 3287295 | G164: Б | J164: 37785 | K164: 79591 | L164: Есть
A165: 148 | B165: 6 | C165: Владивосток | D165: 1 | E165: 32453 | F165: 32453 | G165: В | J165: 32453 | K165: 23017 | L165: Есть
A166: 149 | B166: 4 | C166: Архангельск | D166: 96 | E166: 1458 | F166: 139968 | G166: В | J166: 1458 | K166: 23118 | L166: Есть
A167: 150 | B167: 4 | C167: Архангельск | D167: 91 | E167: 31231 | F167: 2842021 | G167: Б | J167: 31231 | K167: 67479 | L167: Есть
A168: 151 | B168: 6 | C168: Владивосток | D168: 91 | E168: 51105 | F168: 4650555 | G168: Б | J168: 51105 | K168: 27654 | L168: Есть
A169: 152 | B169: 7 | C169: Мурманск | D169: 78 | E169: 4216 | F169: 328848 | G169: В | J169: 4216 | K169: 63478 | L169: Есть
A170: 153 | B170: 8 | C170: Новосибирск | D170: 23 | E170: 75751 | F170: 1742273 | G170: Б | J170: 75751 | K170: 20742 | L170: Есть
A171: 154 | B171: 2 | C171: Санкт-Петербург | D171: 61 | E171: 62357 | F171: 3803777 | G171: Б | J171: 62357 | K171: 36324 | L171: Есть
A172: 155 | B172: 4 | C172: Архангельск | D172: 46 | E172: 12474 | F172: 573804 | G172: В | J172: 12474 | K172: 68145 | L172: Есть
A173: 156 | B173: 6 | C173: Владивосток | D173: 35 | E173: 79623 | F173: 2786805 | G173: Б | J173: 79623 | K173: 97883 | L173: Есть
A174: 157 | B174: 3 | C174: Челябинск | D174: 5 | E174: 94737 | F174: 473685 | G174: В | J174: 94737 | K174: 78281 | L174: Есть
A175: 158 | B175: 7 | C175: Мурманск | D175: 82 | E175: 86538 | F175: 7096116 | G175: А | J175: 86538 | K175: 92453 | L175: Есть
A176: 159 | B176: 2 | C176: Санкт-Петербург | D176: 12 | E176: 18266 | F176: 219192 | G176: В | J176: 18266 | K176: 83275 | L176: Есть
A177: 160 | B177: 8 | C177: Новосибирск | D177: 78 | E177: 49994 | F177: 3899532 | G177: Б | J177: 49994 | K177: 52782 | L177: Есть
A178: 161 | B178: 7 | C178: Мурманск | D178: 83 | E178: 47134 | F178: 3912122 | G178: Б | J178: 47134 | K178: 90396 | L178: Есть
A179: 162 | B179: 7 | C179: Мурманск | D179: 58 | E179: 69557 | F179: 4034306 | G179: Б | J179: 69557 | K179: 11956 | L179: Есть
A180: 163 | B180: 5 | C180: Краснодар | D180: 82 | E180: 78323 | F180: 6422486 | G180: А | J180: 78323 | K180: 16749 | L180: Есть
A181: 164 | B181: 2 | C181: Санкт-Петербург | D181: 6 | E181: 65239 | F181: 391434 | G181: В | J181: 65239 | K181: 6717 | L181: Есть
A182: 165 | B182: 10 | C182: Сочи | D182: 10 | E182: 33908 | F182: 339080 | G182: В | J182: 33908 | K182: 28122 | L182: Есть
A183: 166 | B183: 8 | C183: Новосибирск | D183: 61 | E183: 36458 | F183: 2223938 | G183: Б | J183: 36458 | K183: 3621 | L183: Есть
A184: 167 | B184: 6 | C184: Владивосток | D184: 40 | E184: 24693 | F184: 987720 | G184: В | J184: 24693 | K184: 42339 | L184: Есть
A185: 168 | B185: 7 | C185: Мурманск | D185: 46 | E185: 16646 | F185: 765716 | G185: В | J185: 16646 | K185: 28572 | L185: Есть
A186: 169 | B186: 8 | C186: Новосибирск | D186: 69 | E186: 40877 | F186: 2820513 | G186: Б | J186: 40877 | K186: 27033 | L186: Есть
A187: 170 | B187: 3 | C187: Челябинск | D187: 75 | E187: 60727 | F187: 4554525 | G187: Б | J187: 60727 | K187: 47372 | L187: Есть
A188: 171 | B188: 8 | C188: Новосибирск | D188: 49 | E188: 39117 | F188: 1916733 | G188: Б | J188: 39117 | K188: 42952 | L188: Есть
A189: 172 | B189: 5 | C189: Краснодар | D189: 95 | E189: 33436 | F189: 3176420 | G189: Б | J189: 33436 | K189: 43224 | L189: Есть
A190: 173 | B190: 5 | C190: Краснодар | D190: 20 | E190: 33072 | F190: 661440 | G190: В | J190: 33072 | K190: 34090 | L190: Есть
A191: 174 | B191: 2 | C191: Санкт-Петербург | D191: 53 | E191: 80203 | F191: 4250759 | G191: Б | J191: 80203 | K191: 66846 | L191: Есть
A192: 175 | B192: 9 | C192: Тюмень | D192: 52 | E192: 17260 | F192: 897520 | G192: В | J192: 17260 | K192: 66496 | L192: Есть
A193: 176 | B193: 9 | C193: Тюмень | D193: 5 | E193: 14051 | F193: 70255 | G193: В | J193: 14051 | K193: 1093 | L193: Есть
A194: 177 | B194: 5 | C194: Краснодар | D194: 67 | E194: 73849 | F194: 4947883 | G194: Б | J194: 73849 | K194: 41872 | L194: Есть
A195: 178 | B195: 9 | C195: Тюмень | D195: 11 | E195: 34756 | F195: 382316 | G195: В | J195: 34756 | K195: 14655 | L195: Есть
A196: 179 | B196: 1 | C196: Москва | D196: 7 | E196: 46694 | F196: 326858 | G196: В | J196: 46694 | K196: 29004 | L196: Есть
A197: 180 | B197: 2 | C197: Санкт-Петербург | D197: 77 | E197: 73208 | F197: 5637016 | G197: А | J197: 73208 | K197: 28908 | L197: Есть
A198: 181 | B198: 5 | C198: Краснодар | D198: 57 | E198: 72746 | F198: 4146522 | G198: Б | J198: 72746 | K198: 24808 | L198: Есть
A199: 182 | B199: 4 | C199: Архангельск | D199: 39 | E199: 28712 | F199: 1119768 | G199: Б | J199: 28712 | K199: 17249 | L199: Есть
A200: 183 | B200: 9 | C200: Тюмень | D200: 48 | E200: 18638 | F200: 894624 | G200: В | J200: 18638 | K200: 26226 | L200: Есть
A201: 184 | B201: 3 | C201: Челябинск | D201: 96 | E201: 23693 | F201: 2274528 | G201: Б | J201: 23693 | K201: 70360 | L201: Есть
A202: 185 | B202: 3 | C202: Челябинск | D202: 99 | E202: 53092 | F202: 5256108 | G202: А | J202: 53092 | K202: 17934 | L202: Есть
... 815 more rows

Sheet Лист1
A1: Таблица 4
A2: Исходные данные | B2: Конечные данные
A3: 93470 | B3: 16744 | C3: =IF(COUNTIF($B$3:$B$1002,A3)>0,"Есть","Нет") -> Есть
A4: 15436 | B4: 98543 | C4: =IF(COUNTIF($B$3:$B$1002,A4)>0,"Есть","Нет") -> Есть
A5: 85030 | B5: 19420 | C5: Есть
A6: 17080 | B6: 18638 | C6: Есть
A7: 64494 | B7: 57536 | C7: Есть
A8: 88369 | B8: 5799 | C8: =IF(COUNTIF($B$3:$B$1002,A8)>0,"Есть","Нет") -> Нет
A9: 31965 | B9: 37998 | C9: Есть
A10: 99825 | B10: 54695 | C10: Есть
A11: 70360 | B11: 63912 | C11: Есть
A12: 26226 | B12: 37905 | C12: Есть
A13: 79777 | B13: 42872 | C13: Есть
A14: 99983 | B14: 2396 | C14: Есть
A15: 59856 | B15: 61431 | C15: Есть
A16: 13577 | B16: 25566 | C16: Есть
A17: 76951 | B17: 96134 | C17: Есть
A18: 57536 | B18: 48370 | C18: Есть
A19: 67723 | B19: 67066 | C19: Есть
A20: 76144 | B20: 43253 | C20: Есть
A21: 51504 | B21: 63079 | C21: Есть
A22: 67867 | B22: 36464 | C22: Есть
A23: 61505 | B23: 22068 | C23: Есть
A24: 45225 | B24: 12696 | C24: Есть
A25: 20725 | B25: 45475 | C25: Есть
A26: 60550 | B26: 35148 | C26: Есть
A27: 11164 | B27: 11141 | C27: Есть
A28: 41872 | B28: 83318 | C28: Есть
A29: 23655 | B29: 99764 | C29: Есть
A30: 97901 | B30: 51527 | C30: Есть
A31: 82442 | B31: 97003 | C31: Есть
A32: 94804 | B32: 91631 | C32: Есть
A33: 79322 | B33: 12474 | C33: Есть
A34: 5272 | B34: 81672 | C34: Есть
A35: 62962 | B35: 63412 | C35: Есть
A36: 80082 | B36: 24302 | C36: Есть
A37: 70724 | B37: 62422 | C37: Есть
A38: 16106 | B38: 68301 | C38: Есть
A39: 1093 | B39: 70601 | C39: Есть
A40: 81535 | B40: 54781 | C40: Есть
A41: 49566 | B41: 54660 | C41: Есть
A42: 55723 | B42: 7128 | C42: Есть
A43: 77563 | B43: 21593 | C43: Есть
A44: 82926 | B44: 7039 | C44: Есть
A45: 70746 | B45: 39542 | C45: Есть
A46: 39870 | B46: 23395 | C46: Есть
A47: 6807 | B47: 52042 | C47: Есть
A48: 80879 | B48: 46058 | C48: Есть
A49: 51584 | B49: 25116 | C49: Есть
A50: 99026 | B50: 37661 | C50: Есть
A51: 47089 | B51: 22509 | C51: Есть
A52: 24543 | B52: 91372 | C52: Есть
A53: 51809 | B53: 45443 | C53: Есть
A54: 35436 | B54: 38947 | C54: Есть
A55: 55351 | B55: 32564 | C55: Есть
A56: 77027 | B56: 23802 | C56: Есть
A57: 83295 | B57: 77187 | C57: Есть
A58: 91918 | B58: 71569 | C58: Есть
A59: 51832 | B59: 25121 | C59: Есть
A60: 10557 | B60: 47020 | C60: Есть
A61: 43544 | B61: 88597 | C61: Есть
A62: 62405 | B62: 25559 | C62: Есть
A63: 17417 | B63: 76028 | C63: Есть
A64: 12408 | B64: 77797 | C64: Есть
A65: 69919 | B65: 5344 | C65: Есть
A66: 11244 | B66: 96467 | C66: Есть
A67: 12755 | B67: 48584 | C67: Есть
A68: 30573 | B68: 82466 | C68: =IF(COUNTIF($B$3:$B$1002,A68)>0,"Есть","Нет") -> Есть
A69: 27631 | B69: 92497 | C69: Есть
A70: 27241 | B70: 41371 | C70: Есть
A71: 25116 | B71: 18076 | C71: Есть
A72: 35183 | B72: 74104 | C72: Есть
A73: 12470 | B73: 86816 | C73: Есть
A74: 2459 | B74: 25288 | C74: Есть
A75: 37998 | B75: 57917 | C75: Есть
A76: 7682 | B76: 78714 | C76: Есть
A77: 86296 | B77: 70998 | C77: Есть
A78: 29766 | B78: 4220 | C78: Есть
A79: 26485 | B79: 1394 | C79: Есть
A80: 53748 | B80: 79322 | C80: Есть
A81: 37262 | B81: 97914 | C81: Есть
A82: 33128 | B82: 6440 | C82: Есть
A83: 76366 | B83: 25500 | C83: Есть
A84: 45961 | B84: 37262 | C84: Есть
A85: 55811 | B85: 10419 | C85: Есть
A86: 16660 | B86: 44543 | C86: Есть
A87: 32980 | B87: 70279 | C87: Есть
A88: 83233 | B88: 39867 | C88: Есть
A89: 49402 | B89: 11117 | C89: Есть
A90: 41422 | B90: 15970 | C90: Есть
A91: 65839 | B91: 91360 | C91: Есть
A92: 83971 | B92: 26745 | C92: Есть
A93: 70998 | B93: 41173 | C93: Есть
A94: 28965 | B94: 80853 | C94: Есть
A95: 69979 | B95: 72722 | C95: Есть
A96: 97003 | B96: 59101 | C96: Есть
A97: 79297 | B97: 70726 | C97: Есть
A98: 84626 | B98: 22513 | C98: Есть
A99: 82070 | B99: 11473 | C99: Есть
A100: 43253 | B100: 51015 | C100: Есть
A101: 20720 | B101: 49627 | C101: Есть
A102: 53579 | B102: 86980 | C102: Есть
A103: 28281 | B103: 70148 | C103: Есть
A104: 76157 | B104: 37281 | C104: Есть
A105: 35148 | B105: 48404 | C105: Есть
A106: 91631 | B106: 69979 | C106: Есть
A107: 90883 | B107: 93470 | C107: Есть
A108: 75839 | B108: 12420 | C108: Есть
A109: 92395 | B109: 97901 | C109: Есть
A110: 72763 | B110: 35122 | C110: Есть
A111: 10609 | B111: 41337 | C111: Есть
A112: 59029 | B112: 63770 | C112: Нет
A113: 49455 | B113: 15961 | C113: Есть
A114: 11437 | B114: 83756 | C114: Есть
A115: 96772 | B115: 87413 | C115: Есть
A116: 19740 | B116: 17486 | C116: Есть
A117: 29480 | B117: 65640 | C117: Есть
A118: 14635 | B118: 72837 | C118: Есть
A119: 84110 | B119: 1612 | C119: Есть
A120: 91687 | B120: 77679 | C120: Есть
A121: 33516 | B121: 12510 | C121: Есть
A122: 60658 | B122: 31836 | C122: Есть
A123: 93406 | B123: 5736 | C123: Есть
A124: 42456 | B124: 10922 | C124: Есть
A125: 71985 | B125: 28316 | C125: Есть
A126: 99673 | B126: 46389 | C126: Есть
A127: 32845 | B127: 83533 | C127: Есть
A128: 79432 | B128: 10628 | C128: Есть
A129: 23922 | B129: 77729 | C129: Есть
A130: 80011 | B130: 95757 | C130: Есть
A131: 14123 | B131: 98214 | C131: Есть
A132: 96467 | B132: 43130 | C132: =IF(COUNTIF($B$3:$B$1002,A132)>0,"Есть","Нет") -> Есть
A133: 15961 | B133: 75835 | C133: Есть
A134: 98214 | B134: 45421 | C134: Есть
A135: 1305 | B135: 31807 | C135: Есть
A136: 34301 | B136: 42484 | C136: Есть
A137: 34065 | B137: 45961 | C137: Есть
A138: 78828 | B138: 38588 | C138: Есть
A139: 78436 | B139: 76380 | C139: Есть
A140: 67739 | B140: 26703 | C140: Есть
A141: 55013 | B141: 57068 | C141: Есть
A142: 72955 | B142: 3022 | C142: Есть
A143: 48899 | B143: 90970 | C143: Есть
A144: 25566 | B144: 64685 | C144: Есть
A145: 4631 | B145: 16938 | C145: Есть
A146: 86547 | B146: 55811 | C146: Есть
A147: 49527 | B147: 28781 | C147: Есть
A148: 23224 | B148: 43359 | C148: Есть
A149: 37785 | B149: 79591 | C149: Есть
A150: 32453 | B150: 23017 | C150: Есть
A151: 1458 | B151: 23118 | C151: Есть
A152: 31231 | B152: 67479 | C152: Есть
A153: 51105 | B153: 27654 | C153: Есть
A154: 4216 | B154: 63478 | C154: Есть
A155: 75751 | B155: 20742 | C155: Есть
A156: 62357 | B156: 36324 | C156: Есть
A157: 12474 | B157: 68145 | C157: Есть
A158: 79623 | B158: 97883 | C158: Есть
A159: 94737 | B159: 78281 | C159: Есть
A160: 86538 | B160: 92453 | C160: Есть
A161: 18266 | B161: 83275 | C161: Есть
A162: 49994 | B162: 52782 | C162: Есть
A163: 47134 | B163: 90396 | C163: Есть
A164: 69557 | B164: 11956 | C164: Есть
A165: 78323 | B165: 16749 | C165: Есть
A166: 65239 | B166: 6717 | C166: Есть
A167: 33908 | B167: 28122 | C167: Есть
A168: 36458 | B168: 3621 | C168: Есть
A169: 24693 | B169: 42339 | C169: Есть
A170: 16646 | B170: 28572 | C170: Есть
A171: 40877 | B171: 27033 | C171: Есть
A172: 60727 | B172: 47372 | C172: Есть
A173: 39117 | B173: 42952 | C173: Есть
A174: 33436 | B174: 43224 | C174: Есть
A175: 33072 | B175: 34090 | C175: Есть
A176: 80203 | B176: 66846 | C176: Есть
A177: 17260 | B177: 66496 | C177: Есть
A178: 14051 | B178: 1093 | C178: Есть
A179: 73849 | B179: 41872 | C179: Есть
A180: 34756 | B180: 14655 | C180: Есть
A181: 46694 | B181: 29004 | C181: Есть
A182: 73208 | B182: 28908 | C182: Есть
A183: 72746 | B183: 24808 | C183: Есть
A184: 28712 | B184: 17249 | C184: Есть
A185: 18638 | B185: 26226 | C185: Есть
A186: 23693 | B186: 70360 | C186: Есть
A187: 53092 | B187: 17934 | C187: Есть
A188: 23017 | B188: 11854 | C188: Есть
A189: 56436 | B189: 62357 | C189: Есть
A190: 70908 | B190: 32681 | C190: Есть
A191: 48370 | B191: 86296 | C191: Есть
A192: 47165 | B192: 9531 | C192: Есть
A193: 77797 | B193: 10077 | C193: Есть
A194: 47168 | B194: 83672 | C194: Есть
A195: 23322 | B195: 92356 | C195: Есть
A196: 39867 | B196: 31231 | C196: =IF(COUNTIF($B$3:$B$1002,A196)>0,"Есть","Нет") -> Есть
A197: 74772 | B197: 93406 | C197: Есть
A198: 56748 | B198: 24543 | C198: Есть
A199: 17809 | B199: 60222 | C199: Есть
A200: 11473 | B200: 47168 | C200: Есть
... 802 more rows

Sheet Сводная
A1: Сумма по полю Стоимость
A2: Название города | B2: Статус | C2: Итог
A3: Архангельск | B3: А | C3: 111571147
B4: Б | C4: 155622612
B5: В | C5: 12603185
A6: Владивосток | B6: А | C6: 100093299
B7: Б | C7: 138220265
B8: В | C8: 14792231
A9: Краснодар | B9: А | C9: 105865714
B10: Б | C10: 125807844
B11: В | C11: 12475298
A12: Москва | B12: А | C12: 125581133
B13: Б | C13: 97454208
B14: В | C14: 15460310
A15: Мурманск | B15: А | C15: 91561515
B16: Б | C16: 115311417
B17: В | C17: 12519394
A18: Новосибирск | B18: А | C18: 113446565
B19: Б | C19: 129496313
B20: В | C20: 17027686
A21: Санкт-Петербург | B21: А | C21: 86078707
B22: Б | C22: 115987357
B23: В | C23: 14796002
A24: Сочи | B24: А | C24: 56538890
B25: Б | C25: 110812210
B26: В | C26: 22092640
A27: Тюмень | B27: А | C27: 87710344
B28: Б | C28: 111802140
B29: В | C29: 19805473
A30: Челябинск | B30: А | C30: 99779346
B31: Б | C31: 162846092
B32: В | C32: 17923760
A33: Общий итог | C33: 2401083097
